[Event "Titled Tuesday Blitz March 01 Late 2022"]
[White "Renjith, Sravan"]
[Black "Beerdsen, Thomas"]
[WhiteFideId "4306783"]
[BlackFideId "1030108"]
[WhiteElo "1863"]
[BlackElo "2585"]
[Result "0-1"]
[Round "03"]
[TimeControl "180+1"]
[Date "2022.03.01"]
[WhiteClock "0:00:01"]
[BlackClock "0:00:17"]

1. Nf3 {[%clk 0:03:00]}  h6 {[%clk 0:02:58]} 2. e4 {[%clk 0:03:00]}  g5 {[%clk 0:02:58]} 3. d4 {[%clk 0:03:00]}  Bg7 {[%clk 0:02:59]} 4. Nc3 {[%clk 0:03:00]}  g4 {[%clk 0:02:59]} 5. Ne5 {[%clk 0:02:58]}  h5 {[%clk 0:02:59]} 6. Bf4 {[%clk 0:02:56]}  d6 {[%clk 0:02:58]} 7. Nc4 {[%clk 0:02:56]}  a6 {[%clk 0:02:55]} 8. a4 {[%clk 0:02:56]}  e6 {[%clk 0:02:54]} 9. Be2 {[%clk 0:02:54]}  Ne7 {[%clk 0:02:54]} 10. Qd2 {[%clk 0:02:53]}  Nbc6 {[%clk 0:02:53]} 11. d5 {[%clk 0:02:52]}  Nd4 {[%clk 0:02:53]} 12. Be3 {[%clk 0:02:43]}  c5 {[%clk 0:02:50]} 13. a5 {[%clk 0:02:34]}  exd5 {[%clk 0:02:45]} 14. Nxd5 {[%clk 0:02:33]}  Nxd5 {[%clk 0:02:44]} 15. exd5 {[%clk 0:02:33]}  Bf5 {[%clk 0:02:25]} 16. Bd3 {[%clk 0:02:24]}  Bxd3 {[%clk 0:02:18]} 17. Qxd3 {[%clk 0:02:24]}  Qe7 {[%clk 0:01:39]} 18. O-O {[%clk 0:01:57]}  O-O-O {[%clk 0:01:26]} 19. Rfe1 {[%clk 0:01:51]}  Qf6 {[%clk 0:01:21]} 20. c3 {[%clk 0:01:28]}  Nb5 {[%clk 0:00:59]} 21. Qd2 {[%clk 0:01:21]}  Qg6 {[%clk 0:00:52]} 22. Bf4 {[%clk 0:01:00]}  Rhe8 {[%clk 0:00:45]} 23. Re3 {[%clk 0:00:45]}  Re4 {[%clk 0:00:42]} 24. Nb6+ {[%clk 0:00:35]}  Kb8 {[%clk 0:00:42]} 25. Bg3 {[%clk 0:00:31]}  Rxe3 {[%clk 0:00:35]} 26. Qxe3 {[%clk 0:00:32]}  Bf6 {[%clk 0:00:32]} 27. Qxc5 {[%clk 0:00:23]}  h4 {[%clk 0:00:32]} 28. Bf4 {[%clk 0:00:23]}  h3 {[%clk 0:00:27]} 29. Qe3 {[%clk 0:00:12]}  hxg2 {[%clk 0:00:23]} 30. Re1 {[%clk 0:00:10]}  Qf5 {[%clk 0:00:24]} 31. Bg3 {[%clk 0:00:09]}  Bg5 {[%clk 0:00:20]} 32. Qe4 {[%clk 0:00:05]}  Qf3 {[%clk 0:00:19]} 33. Nc4 {[%clk 0:00:02]}  Ka7 {[%clk 0:00:16]} 34. Nb6 {[%clk 0:00:02]}  Bd2 {[%clk 0:00:16]} 35. Re2 {[%clk 0:00:02]}  Bc1 {[%clk 0:00:15]} 36. Re1 {[%clk 0:00:02]}  Bxb2 {[%clk 0:00:15]} 37. c4 {[%clk 0:00:01]}  Nd4 {[%clk 0:00:15]} 38. Qxf3 {[%clk 0:00:01]}  Nxf3+ {[%clk 0:00:16]} 39. Kxg2 {[%clk 0:00:01]}  Nxe1+ {[%clk 0:00:17]} 0-1


[Site "https://www.chess.com"]

[Event "Titled Tuesday Blitz March 01 Late 2022"]
[White "Ribeiro, Matheus Mendes Domingues"]
[Black "Dronavalli, Harika"]
[WhiteFideId "324226923"]
[BlackFideId "5015197"]
[WhiteElo "1886"]
[BlackElo "2382"]
[Result "0-1"]
[Round "03"]
[TimeControl "180+1"]
[Date "2022.03.02"]
[WhiteClock "0:00:05"]
[BlackClock "0:00:32"]

1. c4 {[%clk 0:03:00]}  e5 {[%clk 0:02:59]} 2. Nc3 {[%clk 0:03:00]}  d6 {[%clk 0:02:59]} 3. Nf3 {[%clk 0:03:01]}  f5 {[%clk 0:02:55]} 4. g3 {[%clk 0:02:59]}  Nf6 {[%clk 0:02:53]} 5. Bg2 {[%clk 0:03:00]}  g6 {[%clk 0:02:53]} 6. O-O {[%clk 0:02:56]}  Bg7 {[%clk 0:02:54]} 7. d4 {[%clk 0:02:57]}  e4 {[%clk 0:02:53]} 8. Nd2 {[%clk 0:02:57]}  c6 {[%clk 0:02:48]} 9. d5 {[%clk 0:02:55]}  O-O {[%clk 0:02:47]} 10. f3 {[%clk 0:02:55]}  exf3 {[%clk 0:02:19]} 11. exf3 {[%clk 0:02:41]}  Nbd7 {[%clk 0:02:19]} 12. Nb3 {[%clk 0:02:28]}  c5 {[%clk 0:02:18]} 13. Re1 {[%clk 0:01:54]}  Ne5 {[%clk 0:02:14]} 14. Nxc5 {[%clk 0:01:30]}  dxc5 {[%clk 0:02:02]} 15. Rxe5 {[%clk 0:01:29]}  Ng4 {[%clk 0:01:59]} 16. Re1 {[%clk 0:00:54]}  Bd4+ {[%clk 0:01:58]} 17. Kf1 {[%clk 0:00:49]}  Nxh2+ {[%clk 0:01:45]} 18. Ke2 {[%clk 0:00:50]}  Re8+ {[%clk 0:01:36]} 19. Kd3 {[%clk 0:00:49]}  f4 {[%clk 0:01:20]} 20. Bxf4 {[%clk 0:00:43]}  Bf5+ {[%clk 0:01:20]} 21. Kd2 {[%clk 0:00:44]}  g5 {[%clk 0:00:56]} 22. Be3 {[%clk 0:00:37]}  Qf6 {[%clk 0:00:54]} 23. Ne4 {[%clk 0:00:28]}  Bxe3+ {[%clk 0:00:43]} 24. Rxe3 {[%clk 0:00:27]}  Bxe4 {[%clk 0:00:43]} 25. Rxe4 {[%clk 0:00:23]}  Rxe4 {[%clk 0:00:40]} 26. fxe4 {[%clk 0:00:23]}  Qxb2+ {[%clk 0:00:41]} 27. Kd3 {[%clk 0:00:22]}  Rf8 {[%clk 0:00:38]} 28. Bh3 {[%clk 0:00:12]}  Qd4+ {[%clk 0:00:31]} 29. Kc2 {[%clk 0:00:11]}  Rf2+ {[%clk 0:00:32]} 30. Kb3 {[%clk 0:00:11]}  Rb2+ {[%clk 0:00:32]} 31. Ka3 {[%clk 0:00:05]}  Qc3+ {[%clk 0:00:32]} 32. Ka4 {[%clk 0:00:05]}  Qb4# {[%clk 0:00:32]} 0-1


[Site "https://www.chess.com"]

[Event "Titled Tuesday Blitz March 01 Late 2022"]
[White "Rorrer, Grayson"]
[Black "Przybylski, Wojciech"]
[WhiteFideId "30944996"]
[BlackFideId "1117599"]
[WhiteElo "2122"]
[BlackElo "2133"]
[Result "1-0"]
[Round "03"]
[TimeControl "180+1"]
[Date "2022.03.02"]
[WhiteClock "0:00:05"]
[BlackClock "0:00:04"]

1. e4 {[%clk 0:03:00]}  e5 {[%clk 0:02:58]} 2. Nc3 {[%clk 0:03:00]}  Nf6 {[%clk 0:02:56]} 3. d4 {[%clk 0:03:01]}  d6 {[%clk 0:02:51]} 4. Nf3 {[%clk 0:03:00]}  exd4 {[%clk 0:02:49]} 5. Qxd4 {[%clk 0:03:00]}  Nc6 {[%clk 0:02:49]} 6. Qd3 {[%clk 0:02:57]}  Be7 {[%clk 0:02:46]} 7. Bf4 {[%clk 0:02:58]}  O-O {[%clk 0:02:45]} 8. O-O-O {[%clk 0:02:58]}  Ng4 {[%clk 0:02:44]} 9. Qd2 {[%clk 0:02:54]}  Nge5 {[%clk 0:02:40]} 10. Be2 {[%clk 0:02:49]}  Re8 {[%clk 0:02:35]} 11. Kb1 {[%clk 0:02:43]}  Be6 {[%clk 0:02:28]} 12. Nd5 {[%clk 0:02:25]}  Bf8 {[%clk 0:02:22]} 13. h4 {[%clk 0:02:15]}  Nxf3 {[%clk 0:02:14]} 14. Bxf3 {[%clk 0:02:14]}  Ne5 {[%clk 0:02:14]} 15. Be2 {[%clk 0:02:15]}  c6 {[%clk 0:02:14]} 16. Ne3 {[%clk 0:02:11]}  Qc7 {[%clk 0:02:11]} 17. h5 {[%clk 0:02:10]}  Rad8 {[%clk 0:02:02]} 18. g4 {[%clk 0:02:04]}  b5 {[%clk 0:01:57]} 19. Bg3 {[%clk 0:01:59]}  Qb6 {[%clk 0:01:42]} 20. f4 {[%clk 0:01:51]}  Nc4 {[%clk 0:01:27]} 21. Nxc4 {[%clk 0:01:30]}  Bxc4 {[%clk 0:01:12]} 22. Bd3 {[%clk 0:01:24]}  Qd4 {[%clk 0:00:58]} 23. Bf2 {[%clk 0:01:12]}  Qf6 {[%clk 0:00:58]} 24. Bh4 {[%clk 0:01:13]}  Qe6 {[%clk 0:00:50]} 25. Bxd8 {[%clk 0:01:12]}  Rxd8 {[%clk 0:00:49]} 26. g5 {[%clk 0:01:13]}  Bxa2+ {[%clk 0:00:43]} 27. Ka1 {[%clk 0:01:10]}  Bc4 {[%clk 0:00:39]} 28. g6 {[%clk 0:01:02]}  h6 {[%clk 0:00:36]} 29. Qc3 {[%clk 0:00:44]}  Bxd3 {[%clk 0:00:27]} 30. cxd3 {[%clk 0:00:45]}  d5 {[%clk 0:00:18]} 31. f5 {[%clk 0:00:44]}  Qd7 {[%clk 0:00:15]} 32. f6 {[%clk 0:00:36]}  d4 {[%clk 0:00:14]} 33. Qd2 {[%clk 0:00:35]}  fxg6 {[%clk 0:00:07]} 34. hxg6 {[%clk 0:00:34]}  c5 {[%clk 0:00:05]} 35. f7+ {[%clk 0:00:29]}  Kh8 {[%clk 0:00:04]} 36. Qf4 {[%clk 0:00:28]}  Qe6 {[%clk 0:00:04]} 37. Qf5 {[%clk 0:00:18]}  Rd6 {[%clk 0:00:04]} 38. Rhg1 {[%clk 0:00:15]}  Ra6+ {[%clk 0:00:03]} 39. Kb1 {[%clk 0:00:15]}  Qa2+ {[%clk 0:00:04]} 40. Kc2 {[%clk 0:00:15]}  c4 {[%clk 0:00:04]} 41. Kd2 {[%clk 0:00:09]}  Qxb2+ {[%clk 0:00:04]} 42. Ke1 {[%clk 0:00:09]}  Bb4+ {[%clk 0:00:04]} 43. Kf1 {[%clk 0:00:09]}  Bf8 {[%clk 0:00:04]} 44. Qc8 {[%clk 0:00:08]}  Qb4 {[%clk 0:00:03]} 45. Qxa6 {[%clk 0:00:08]}  Qe7 {[%clk 0:00:03]} 46. Qxb5 {[%clk 0:00:07]}  c3 {[%clk 0:00:04]} 47. Rg2 {[%clk 0:00:04]}  c2 {[%clk 0:00:04]} 48. Rxc2 {[%clk 0:00:03]}  Qg5 {[%clk 0:00:04]} 49. Qxg5 {[%clk 0:00:04]}  hxg5 {[%clk 0:00:04]} 50. Rh2# {[%clk 0:00:05]} 1-0


[Site "https://www.chess.com"]

[Event "Titled Tuesday Blitz March 01 Late 2022"]
[White "Rosen, Eric"]
[Black "Stankovic, Ivan G"]
[WhiteFideId "2032562"]
[BlackFideId "902837"]
[WhiteElo "2362"]
[BlackElo "2195"]
[Result "1-0"]
[Round "03"]
[TimeControl "180+1"]
[Date "2022.03.02"]
[WhiteClock "0:02:18"]
[BlackClock "0:01:59"]

1. d4 {[%clk 0:03:00]}  d5 {[%clk 0:02:59]} 2. Bf4 {[%clk 0:02:50]}  Nf6 {[%clk 0:02:59]} 3. e3 {[%clk 0:02:50]}  c5 {[%clk 0:02:59]} 4. Nf3 {[%clk 0:02:50]}  Nc6 {[%clk 0:02:56]} 5. Nbd2 {[%clk 0:02:50]}  Qb6 {[%clk 0:02:51]} 6. dxc5 {[%clk 0:02:49]}  Qxb2 {[%clk 0:02:47]} 7. c4 {[%clk 0:02:46]}  Bg4 {[%clk 0:02:34]} 8. Rb1 {[%clk 0:02:41]}  Qxa2 {[%clk 0:02:30]} 9. Rxb7 {[%clk 0:02:33]}  e5 {[%clk 0:02:29]} 10. cxd5 {[%clk 0:02:26]}  Qxd5 {[%clk 0:02:12]} 11. Bc4 {[%clk 0:02:20]}  Qxc5 {[%clk 0:02:07]} 12. Bxf7+ {[%clk 0:02:20]}  Kd8 {[%clk 0:02:01]} 13. Ne4+ {[%clk 0:02:19]}  Qd5 {[%clk 0:01:59]} 14. Bxd5 {[%clk 0:02:18]} 1-0


[Site "https://www.chess.com"]

[Event "Titled Tuesday Blitz March 01 Late 2022"]
[White "Ruiz Aguilar, Pablo Alexander"]
[Black "Tanenbaum, Zachary"]
[WhiteFideId "4401352"]
[BlackFideId "2060850"]
[WhiteElo "2125"]
[BlackElo "2168"]
[Result "0-1"]
[Round "03"]
[TimeControl "180+1"]
[Date "2022.03.02"]
[WhiteClock "0:00:01"]
[BlackClock "0:00:10"]

1. e4 {[%clk 0:03:00]}  e5 {[%clk 0:03:00]} 2. Nf3 {[%clk 0:03:00]}  Nc6 {[%clk 0:03:00]} 3. Bb5 {[%clk 0:02:59]}  a6 {[%clk 0:03:01]} 4. Ba4 {[%clk 0:02:59]}  d6 {[%clk 0:03:02]} 5. O-O {[%clk 0:02:58]}  Nf6 {[%clk 0:03:02]} 6. d3 {[%clk 0:02:58]}  b5 {[%clk 0:03:01]} 7. Bb3 {[%clk 0:02:57]}  Na5 {[%clk 0:03:02]} 8. c3 {[%clk 0:02:56]}  Nxb3 {[%clk 0:03:02]} 9. axb3 {[%clk 0:02:57]}  Be7 {[%clk 0:03:02]} 10. b4 {[%clk 0:02:57]}  O-O {[%clk 0:03:01]} 11. Re1 {[%clk 0:02:56]}  Bb7 {[%clk 0:03:00]} 12. Nbd2 {[%clk 0:02:56]}  Nd7 {[%clk 0:02:51]} 13. Nf1 {[%clk 0:02:55]}  f5 {[%clk 0:02:51]} 14. exf5 {[%clk 0:02:53]}  Rxf5 {[%clk 0:02:52]} 15. N3d2 {[%clk 0:02:40]}  Qe8 {[%clk 0:02:47]} 16. Ng3 {[%clk 0:02:39]}  Qg6 {[%clk 0:02:45]} 17. Nde4 {[%clk 0:02:37]}  Rf7 {[%clk 0:02:40]} 18. Qh5 {[%clk 0:02:34]}  Qxh5 {[%clk 0:02:27]} 19. Nxh5 {[%clk 0:02:34]}  Raf8 {[%clk 0:02:28]} 20. f3 {[%clk 0:02:31]}  d5 {[%clk 0:02:03]} 21. Nf2 {[%clk 0:02:21]}  c5 {[%clk 0:02:02]} 22. Ng4 {[%clk 0:01:56]}  cxb4 {[%clk 0:01:57]} 23. Nxe5 {[%clk 0:01:56]}  Nxe5 {[%clk 0:01:51]} 24. Rxe5 {[%clk 0:01:56]}  bxc3 {[%clk 0:01:48]} 25. bxc3 {[%clk 0:01:56]}  g6 {[%clk 0:01:43]} 26. Bg5 {[%clk 0:01:36]}  Bd6 {[%clk 0:01:34]} 27. Re6 {[%clk 0:01:36]}  Bb8 {[%clk 0:01:04]} 28. Nf6+ {[%clk 0:01:27]}  Kg7 {[%clk 0:01:02]} 29. Ng4 {[%clk 0:01:28]}  Bf4 {[%clk 0:00:55]} 30. Bxf4 {[%clk 0:01:23]}  Rxf4 {[%clk 0:00:56]} 31. Re7+ {[%clk 0:01:23]}  R4f7 {[%clk 0:00:54]} 32. Rae1 {[%clk 0:01:22]}  a5 {[%clk 0:00:51]} 33. Rxf7+ {[%clk 0:01:11]}  Rxf7 {[%clk 0:00:52]} 34. Ne5 {[%clk 0:01:11]}  Rc7 {[%clk 0:00:49]} 35. Ra1 {[%clk 0:01:00]}  a4 {[%clk 0:00:48]} 36. Ra3 {[%clk 0:00:58]}  d4 {[%clk 0:00:48]} 37. cxd4 {[%clk 0:00:58]}  Bd5 {[%clk 0:00:46]} 38. Kf2 {[%clk 0:00:51]}  Bb3 {[%clk 0:00:45]} 39. d5 {[%clk 0:00:38]}  Rc5 {[%clk 0:00:29]} 40. d4 {[%clk 0:00:31]}  Rxd5 {[%clk 0:00:29]} 41. Ke3 {[%clk 0:00:32]}  b4 {[%clk 0:00:26]} 42. Ra1 {[%clk 0:00:32]}  Bc2 {[%clk 0:00:21]} 43. Nc6 {[%clk 0:00:24]}  Rb5 {[%clk 0:00:20]} 44. d5 {[%clk 0:00:12]}  b3 {[%clk 0:00:18]} 45. d6 {[%clk 0:00:12]}  Rd5 {[%clk 0:00:11]} 46. Rxa4 {[%clk 0:00:09]}  b2 {[%clk 0:00:10]} 47. Ra7+ {[%clk 0:00:09]}  Kh6 {[%clk 0:00:09]} 48. Rb7 {[%clk 0:00:01]}  b1=Q {[%clk 0:00:09]} 49. Rxb1 {[%clk 0:00:01]}  Bxb1 {[%clk 0:00:10]} 50. Ne7 {[%clk 0:00:01]}  Rxd6 {[%clk 0:00:10]} 0-1


[Site "https://www.chess.com"]

[Event "Titled Tuesday Blitz March 01 Late 2022"]
[White "Sadilek, Peter"]
[Black "Martin Barcelo, Carles"]
[WhiteFideId "1616439"]
[BlackFideId "24561444"]
[WhiteElo "2145"]
[BlackElo "1875"]
[Result "1-0"]
[Round "03"]
[TimeControl "180+1"]
[Date "2022.03.02"]
[WhiteClock "0:00:05"]
[BlackClock "0:00:03"]

1. d4 {[%clk 0:03:00]}  Nf6 {[%clk 0:02:56]} 2. c4 {[%clk 0:02:58]}  g6 {[%clk 0:02:56]} 3. Nc3 {[%clk 0:02:57]}  Bg7 {[%clk 0:02:57]} 4. e4 {[%clk 0:02:58]}  d6 {[%clk 0:02:57]} 5. Be2 {[%clk 0:02:59]}  O-O {[%clk 0:02:57]} 6. Nf3 {[%clk 0:02:59]}  e5 {[%clk 0:02:56]} 7. d5 {[%clk 0:03:00]}  a5 {[%clk 0:02:40]} 8. Bg5 {[%clk 0:03:00]}  h6 {[%clk 0:02:38]} 9. Be3 {[%clk 0:03:01]}  Ng4 {[%clk 0:02:37]} 10. Bd2 {[%clk 0:03:02]}  f5 {[%clk 0:02:28]} 11. h3 {[%clk 0:03:02]}  Nf6 {[%clk 0:02:25]} 12. exf5 {[%clk 0:03:02]}  gxf5 {[%clk 0:02:25]} 13. Qc1 {[%clk 0:03:03]}  f4 {[%clk 0:02:21]} 14. g3 {[%clk 0:03:03]}  e4 {[%clk 0:02:22]} 15. Nh4 {[%clk 0:03:04]}  e3 {[%clk 0:02:23]} 16. fxe3 {[%clk 0:03:04]}  fxg3 {[%clk 0:02:23]} 17. Ng6 {[%clk 0:03:05]}  g2 {[%clk 0:02:11]} 18. Rg1 {[%clk 0:03:06]}  Bxh3 {[%clk 0:02:11]} 19. Nxf8 {[%clk 0:03:05]}  Qxf8 {[%clk 0:02:10]} 20. Qc2 {[%clk 0:03:06]}  Na6 {[%clk 0:02:09]} 21. O-O-O {[%clk 0:03:05]}  Nd7 {[%clk 0:01:52]} 22. Qg6 {[%clk 0:02:45]}  Ndc5 {[%clk 0:01:34]} 23. Qg3 {[%clk 0:01:57]}  Bf5 {[%clk 0:01:16]} 24. Qxg2 {[%clk 0:01:17]}  Nb4 {[%clk 0:00:33]} 25. e4 {[%clk 0:01:15]}  Nxa2+ {[%clk 0:00:20]} 26. Nxa2 {[%clk 0:01:06]}  Bxe4 {[%clk 0:00:20]} 27. Qxg7+ {[%clk 0:01:02]}  Qxg7 {[%clk 0:00:21]} 28. Rxg7+ {[%clk 0:01:01]}  Kxg7 {[%clk 0:00:22]} 29. Rg1+ {[%clk 0:00:54]}  Kh7 {[%clk 0:00:20]} 30. Nc3 {[%clk 0:00:41]}  Bg6 {[%clk 0:00:19]} 31. Rg3 {[%clk 0:00:30]}  a4 {[%clk 0:00:18]} 32. Re3 {[%clk 0:00:26]}  a3 {[%clk 0:00:13]} 33. bxa3 {[%clk 0:00:25]}  Rxa3 {[%clk 0:00:12]} 34. Nb5 {[%clk 0:00:11]}  Ra1+ {[%clk 0:00:10]} 35. Kb2 {[%clk 0:00:12]}  Rb1+ {[%clk 0:00:11]} 36. Ka2 {[%clk 0:00:11]}  c6 {[%clk 0:00:08]} 37. dxc6 {[%clk 0:00:11]}  bxc6 {[%clk 0:00:09]} 38. Nxd6 {[%clk 0:00:11]}  Rb8 {[%clk 0:00:06]} 39. Re7+ {[%clk 0:00:11]}  Kg8 {[%clk 0:00:05]} 40. Ra7 {[%clk 0:00:08]}  h5 {[%clk 0:00:04]} 41. Bc3 {[%clk 0:00:07]}  h4 {[%clk 0:00:03]} 42. Rg7+ {[%clk 0:00:06]}  Kf8 {[%clk 0:00:03]} 43. Rxg6 {[%clk 0:00:07]}  h3 {[%clk 0:00:03]} 44. Bf3 {[%clk 0:00:07]}  h2 {[%clk 0:00:02]} 45. Rh6 {[%clk 0:00:07]}  Ra8+ {[%clk 0:00:02]} 46. Kb2 {[%clk 0:00:07]}  Rb8+ {[%clk 0:00:03]} 47. Kc2 {[%clk 0:00:07]}  Rd8 {[%clk 0:00:03]} 48. Rh8+ {[%clk 0:00:06]}  Ke7 {[%clk 0:00:03]} 49. Bf6+ {[%clk 0:00:05]} 1-0


[Site "https://www.chess.com"]

[Event "Titled Tuesday Blitz March 01 Late 2022"]
[White "Saim, Mohamed Ilias"]
[Black "Peatman, Carter"]
[WhiteFideId "7900465"]
[BlackFideId "2096480"]
[WhiteElo "2006"]
[BlackElo "2285"]
[Result "0-1"]
[Round "03"]
[TimeControl "180+1"]
[Date "2022.03.02"]
[WhiteClock "0:00:14"]
[BlackClock "0:00:57"]

1. d4 {[%clk 0:03:00]}  d5 {[%clk 0:02:59]} 2. Nf3 {[%clk 0:03:01]}  Nf6 {[%clk 0:03:00]} 3. e3 {[%clk 0:03:01]}  Bf5 {[%clk 0:02:58]} 4. c4 {[%clk 0:03:01]}  c6 {[%clk 0:02:58]} 5. Nc3 {[%clk 0:03:00]}  e6 {[%clk 0:02:58]} 6. Be2 {[%clk 0:02:56]}  h6 {[%clk 0:02:56]} 7. O-O {[%clk 0:02:56]}  Nbd7 {[%clk 0:02:56]} 8. Bd2 {[%clk 0:02:29]}  Bd6 {[%clk 0:02:49]} 9. c5 {[%clk 0:02:22]}  Bc7 {[%clk 0:02:49]} 10. Qb3 {[%clk 0:02:23]}  b6 {[%clk 0:02:42]} 11. cxb6 {[%clk 0:02:17]}  axb6 {[%clk 0:02:43]} 12. Nh4 {[%clk 0:02:15]}  Bh7 {[%clk 0:02:35]} 13. f4 {[%clk 0:02:12]}  O-O {[%clk 0:02:23]} 14. Nf3 {[%clk 0:02:10]}  c5 {[%clk 0:02:16]} 15. dxc5 {[%clk 0:02:06]}  bxc5 {[%clk 0:02:16]} 16. Nb5 {[%clk 0:01:59]}  Rb8 {[%clk 0:02:02]} 17. Qd1 {[%clk 0:01:51]}  Bb6 {[%clk 0:02:01]} 18. Rc1 {[%clk 0:01:45]}  Ne4 {[%clk 0:02:00]} 19. Be1 {[%clk 0:01:27]}  Ndf6 {[%clk 0:01:51]} 20. Ne5 {[%clk 0:01:07]}  Rc8 {[%clk 0:01:38]} 21. g4 {[%clk 0:01:04]}  Nd7 {[%clk 0:01:32]} 22. Nf3 {[%clk 0:00:58]}  Qe7 {[%clk 0:01:31]} 23. Bh4 {[%clk 0:00:58]}  f6 {[%clk 0:01:28]} 24. Nc3 {[%clk 0:00:40]}  g5 {[%clk 0:01:24]} 25. fxg5 {[%clk 0:00:39]}  hxg5 {[%clk 0:01:24]} 26. Bg3 {[%clk 0:00:37]}  Nxg3 {[%clk 0:01:24]} 27. hxg3 {[%clk 0:00:38]}  Qd6 {[%clk 0:01:25]} 28. Kg2 {[%clk 0:00:37]}  Ne5 {[%clk 0:01:17]} 29. Nxe5 {[%clk 0:00:36]}  Qxe5 {[%clk 0:01:17]} 30. Qd2 {[%clk 0:00:25]}  c4 {[%clk 0:01:15]} 31. Na4 {[%clk 0:00:22]}  Bxe3 {[%clk 0:01:14]} 32. Qc3 {[%clk 0:00:21]}  Bxc1 {[%clk 0:01:12]} 33. Qxc1 {[%clk 0:00:19]}  Qxe2+ {[%clk 0:01:11]} 34. Rf2 {[%clk 0:00:20]}  Qe4+ {[%clk 0:01:11]} 35. Kg1 {[%clk 0:00:20]}  Qxg4 {[%clk 0:01:08]} 36. Nb6 {[%clk 0:00:20]}  Rc7 {[%clk 0:01:00]} 37. Na4 {[%clk 0:00:18]}  Be4 {[%clk 0:00:57]} 38. Kh2 {[%clk 0:00:15]}  Rh7+ {[%clk 0:00:56]} 39. Kg1 {[%clk 0:00:14]}  Rh1# {[%clk 0:00:57]} 0-1


[Site "https://www.chess.com"]

[Event "Titled Tuesday Blitz March 01 Late 2022"]
[White "Seo, Jung Min"]
[Black "Romero Ruscalleda, Josep"]
[WhiteFideId "1734687"]
[BlackFideId "2231859"]
[WhiteElo "2401"]
[BlackElo "2321"]
[Result "1-0"]
[Round "03"]
[TimeControl "180+1"]
[Date "2022.03.01"]
[WhiteClock "0:01:42"]
[BlackClock "0:00:37"]

1. d4 {[%clk 0:03:00]}  g6 {[%clk 0:03:00]} 2. e4 {[%clk 0:03:00]}  Bg7 {[%clk 0:03:01]} 3. Nc3 {[%clk 0:03:00]}  d6 {[%clk 0:03:01]} 4. Be3 {[%clk 0:03:00]}  a6 {[%clk 0:03:01]} 5. Qd2 {[%clk 0:02:59]}  b5 {[%clk 0:02:58]} 6. h4 {[%clk 0:02:58]}  h5 {[%clk 0:02:57]} 7. Nh3 {[%clk 0:02:54]}  Nd7 {[%clk 0:02:55]} 8. Ng5 {[%clk 0:02:53]}  Bb7 {[%clk 0:02:53]} 9. f3 {[%clk 0:02:52]}  Rc8 {[%clk 0:02:53]} 10. a4 {[%clk 0:02:49]}  b4 {[%clk 0:02:52]} 11. Ne2 {[%clk 0:02:49]}  a5 {[%clk 0:02:48]} 12. c3 {[%clk 0:02:49]}  c5 {[%clk 0:02:47]} 13. Nf4 {[%clk 0:02:46]}  cxd4 {[%clk 0:02:42]} 14. cxd4 {[%clk 0:02:46]}  e6 {[%clk 0:02:34]} 15. Bb5 {[%clk 0:02:38]}  Qe7 {[%clk 0:02:29]} 16. O-O {[%clk 0:02:35]}  Nf6 {[%clk 0:02:26]} 17. Rac1 {[%clk 0:02:31]}  O-O {[%clk 0:02:25]} 18. Qd3 {[%clk 0:02:18]}  e5 {[%clk 0:02:17]} 19. dxe5 {[%clk 0:02:12]}  dxe5 {[%clk 0:02:02]} 20. Nd5 {[%clk 0:02:12]}  Nxd5 {[%clk 0:01:48]} 21. exd5 {[%clk 0:02:12]}  Bh6 {[%clk 0:01:38]} 22. d6 {[%clk 0:02:10]}  Qd8 {[%clk 0:01:32]} 23. Rc7 {[%clk 0:01:58]}  Rxc7 {[%clk 0:01:01]} 24. dxc7 {[%clk 0:01:58]}  Qxc7 {[%clk 0:01:02]} 25. Qxd7 {[%clk 0:01:57]}  Qxd7 {[%clk 0:00:55]} 26. Bxd7 {[%clk 0:01:57]}  f6 {[%clk 0:00:54]} 27. Be6+ {[%clk 0:01:49]}  Kg7 {[%clk 0:00:53]} 28. Rc1 {[%clk 0:01:44]}  Ba8 {[%clk 0:00:37]} 29. Rc7+ {[%clk 0:01:42]} 1-0


[Site "https://www.chess.com"]

[Event "Titled Tuesday Blitz March 01 Late 2022"]
[White "Shuvalova, Polina"]
[Black "Kevlishvili, Robby"]
[WhiteFideId "24171760"]
[BlackFideId "1040634"]
[WhiteElo "2355"]
[BlackElo "2584"]
[Result "0-1"]
[Round "03"]
[TimeControl "180+1"]
[Date "2022.03.01"]
[WhiteClock "0:00:05"]
[BlackClock "0:00:52"]

1. d4 {[%clk 0:03:00]}  Nf6 {[%clk 0:02:56]} 2. Nf3 {[%clk 0:03:00]}  d5 {[%clk 0:02:53]} 3. Bf4 {[%clk 0:02:59]}  c5 {[%clk 0:02:50]} 4. e3 {[%clk 0:02:58]}  Nc6 {[%clk 0:02:50]} 5. Nbd2 {[%clk 0:02:58]}  e6 {[%clk 0:02:46]} 6. c3 {[%clk 0:02:55]}  Bd6 {[%clk 0:02:45]} 7. Bb5 {[%clk 0:02:43]}  O-O {[%clk 0:02:44]} 8. O-O {[%clk 0:02:41]}  cxd4 {[%clk 0:02:36]} 9. Bxd6 {[%clk 0:02:40]}  Qxd6 {[%clk 0:02:35]} 10. exd4 {[%clk 0:02:39]}  Bd7 {[%clk 0:02:34]} 11. Qe2 {[%clk 0:02:38]}  a6 {[%clk 0:02:32]} 12. Bd3 {[%clk 0:02:37]}  b5 {[%clk 0:02:30]} 13. a3 {[%clk 0:02:29]}  Na5 {[%clk 0:02:29]} 14. Rae1 {[%clk 0:02:19]}  Nc4 {[%clk 0:02:28]} 15. Nb3 {[%clk 0:02:15]}  a5 {[%clk 0:02:18]} 16. Nc5 {[%clk 0:02:14]}  Rfb8 {[%clk 0:01:48]} 17. h4 {[%clk 0:01:55]}  Be8 {[%clk 0:01:46]} 18. g4 {[%clk 0:01:22]}  Qf4 {[%clk 0:01:27]} 19. g5 {[%clk 0:01:15]}  Nh5 {[%clk 0:01:27]} 20. Kh1 {[%clk 0:00:27]}  Qg4 {[%clk 0:01:20]} 21. Rg1 {[%clk 0:00:24]}  Qh3+ {[%clk 0:01:17]} 22. Nh2 {[%clk 0:00:24]}  Nf4 {[%clk 0:01:13]} 23. Rg3 {[%clk 0:00:18]}  Qxg3 {[%clk 0:01:05]} 24. fxg3 {[%clk 0:00:14]}  Nxe2 {[%clk 0:01:06]} 25. Rxe2 {[%clk 0:00:14]}  b4 {[%clk 0:01:06]} 26. axb4 {[%clk 0:00:08]}  axb4 {[%clk 0:01:07]} 27. Bxc4 {[%clk 0:00:05]}  dxc4 {[%clk 0:01:03]} 28. Nf3 {[%clk 0:00:05]}  Bc6 {[%clk 0:01:02]} 29. Kg2 {[%clk 0:00:04]}  bxc3 {[%clk 0:01:02]} 30. bxc3 {[%clk 0:00:05]}  Rb1 {[%clk 0:00:51]} 31. Kf2 {[%clk 0:00:05]}  Rc1 {[%clk 0:00:51]} 32. Ne5 {[%clk 0:00:03]}  Bd5 {[%clk 0:00:51]} 33. Re3 {[%clk 0:00:02]}  Ra2+ {[%clk 0:00:51]} 34. Re2 {[%clk 0:00:02]}  Rxe2+ {[%clk 0:00:51]} 35. Kxe2 {[%clk 0:00:03]}  Rxc3 {[%clk 0:00:52]} 36. Kd2 {[%clk 0:00:04]}  Rxg3 {[%clk 0:00:52]} 37. Ncd7 {[%clk 0:00:04]}  c3+ {[%clk 0:00:52]} 38. Kc2 {[%clk 0:00:05]}  Be4+ {[%clk 0:00:52]} 39. Kc1 {[%clk 0:00:05]}  Rg1# {[%clk 0:00:52]} 0-1


[Site "https://www.chess.com"]